fUSD/lending_fUSD_20240629
["ID","MTS","AMOUNT","RATE_DAILY","PERIOD"]
[330611924,1719624659185,-612.42,0.00021917,3]
[330611925,1719624659194,-500.0,0.00021917,3]
[330611926,1719624659204,-1088.14,0.00021917,3]
[330611927,1719624659214,-1051.39,0.00021917,3]
[330611928,1719624659223,-917.89,0.00021917,3]
[330611929,1719624659233,-772.33,0.00021917,3]
[330611930,1719624659244,-703.13,0.00021917,3]
[330611931,1719624659253,-1258.79,0.00021917,3]
[330611932,1719624659263,-500.0,0.00021917,3]
[330611933,1719624659273,-500.0,0.00021917,3]
[330611934,1719624659283,-254.259924,0.00021917,2]
[330611935,1719624659293,-511.79,0.00021917,3]
[330611936,1719624659302,-254.259924,0.00021917,2]
[330611937,1719624659311,-852.13,0.00021917,3]
[330611938,1719624659321,-254.259924,0.00021917,2]
[330611939,1719624659331,-500.0,0.00021917,3]
[330611940,1719624659344,-254.259924,0.00021917,2]
[330611941,1719624659353,-254.259924,0.00021917,2]
[330611942,1719624659362,-648.36,0.00021917,3]
[330611943,1719624659372,-254.259924,0.00021917,2]
[330611944,1719624659381,-254.259924,0.00021917,2]
[330611945,1719624659390,-1191.02,0.00021917,3]
[330611946,1719624659399,-254.259924,0.00021917,2]
[330611947,1719624659408,-254.259924,0.00021917,2]
[330611948,1719624659419,-254.259928,0.00021917,2]
[330611949,1719624659429,-500.0,0.00021917,3]
[330611950,1719624659438,-500.0,0.00021917,3]
[330611951,1719624659447,-500.0,0.00021917,3]
[330611952,1719624659456,-769.21,0.00021917,3]
[330611953,1719624659465,-500.0,0.00021917,3]
[330611954,1719624659474,-500.0,0.00021917,3]
[330611955,1719624659483,-1011.47,0.00021917,3]
[330611956,1719624659492,-585.42,0.00021917,3]
[330611957,1719624659501,-500.0,0.00021917,3]
[330611958,1719624659511,-1435.04,0.00021917,3]
[330611959,1719624659520,-574.95302381,0.00021917,3]
[330611960,1719624659530,-500.0,0.00021917,3]
[330611961,1719624659539,-897.15,0.00021917,3]
[330611962,1719624659548,-500.0,0.00021917,3]
[330611963,1719624659558,-1520.75,0.00021917,3]
[330611964,1719624659567,-500.0,0.00021917,3]
[330611965,1719624659577,-534.49,0.00021917,3]
[330611966,1719624659586,-1584.93,0.00021917,3]
[330611967,1719624659595,-744.27,0.00021917,3]
[330611968,1719624659605,-1298.46,0.00021917,3]
[330611969,1719624659614,-1325.67,0.00021917,3]
[330611970,1719624659623,-563.85,0.00021917,3]
[330611971,1719624659632,-500.0,0.00021917,3]
[330611972,1719624659641,-500.0,0.00021917,3]
[330611973,1719624659650,-369.50186645,0.00021917,3]
[330611974,1719624659660,-602.01,0.00021917,3]
[330611975,1719624659671,-1368.79,0.00021917,3]
[330611976,1719624659681,-500.0,0.00021917,3]
[330611977,1719624659690,-500.0,0.00021917,3]
[330611978,1719624659700,-1256.47,0.00021917,3]
[330611979,1719624659709,-1395.68,0.00021917,3]
[330611980,1719624659721,-1131.66,0.00021917,3]
[330611981,1719624659732,-1860.55,0.00021917,3]
[330611982,1719624659743,-1301.25,0.00021917,3]
[330611983,1719624659754,-500.0,0.00021917,3]
[330611984,1719624659764,-500.0,0.00021917,3]
[330611985,1719624659774,-2492.98,0.00021917,3]
[330611986,1719624659785,-956.58,0.00021917,3]
[330611987,1719624659796,-500.0,0.00021917,3]
[330611988,1719624659805,-1280.97,0.00021917,3]
[330611989,1719624659816,-151.0,0.00021917,2]
[330611990,1719624659826,-500.0,0.00021917,3]
[330611991,1719624659836,-1607.49,0.00021917,3]
[330611992,1719624659845,-151.0,0.00021917,2]
[330611993,1719624659855,-500.0,0.00021917,3]
[330611994,1719624659864,-151.0,0.00021917,2]
[330611995,1719624659873,-1825.36,0.00021917,3]
[330611996,1719624659883,-151.0,0.00021917,2]
[330611997,1719624659892,-568.9,0.00021917,3]
[330611998,1719624659901,-611.62,0.00021917,3]
[330611999,1719624659911,-971.35,0.00021917,3]
[330612000,1719624659921,-519.67,0.00021917,3]
[330612001,1719624659930,-524.85768805,0.00021917,3]
[330612002,1719624659939,-840.41,0.00021917,3]
[330612003,1719624659948,-2314.34,0.00021917,3]
[330612004,1719624659958,-500.0,0.00021917,3]
[330612005,1719624659967,-500.0,0.00021917,3]
[330612006,1719624659977,-1278.36,0.00021917,3]
[330612007,1719624659986,-1062.64,0.00021917,3]
[330612008,1719624659996,-726.74,0.00021917,3]
[330612009,1719624660006,-719.85,0.00021917,3]
[330612010,1719624660016,-1378.29,0.00021917,3]
[330612011,1719624660025,-805.35,0.00021917,3]
[330612012,1719624660034,-151.0,0.00021917,2]
[330612013,1719624660043,-500.0,0.00021917,3]
[330612014,1719624660052,-161.188264,0.00021917,2]
[330612015,1719624660062,-500.0,0.00021917,3]
[330612016,1719624660071,-1224.35,0.00021917,3]
[330612017,1719624660080,-1229.71,0.00021917,3]
[330612018,1719624660090,-1654.9,0.00021917,3]
[330612019,1719624660098,-869.06,0.00021917,3]
[330612020,1719624660108,-992.34,0.00021917,3]
[330612021,1719624660118,-1704.78,0.00021917,3]
[330612022,1719624660127,-651.81,0.00021917,3]
[330612023,1719624660137,-2076.09,0.00021917,3]
[330612024,1719624660146,-500.0,0.00021917,3]
[330612025,1719624660156,-500.0,0.00021917,3]
[330612026,1719624660166,-500.0,0.00021917,3]
[330612027,1719624660176,-1556.6,0.00021917,3]
[330612028,1719624660186,-3370.19,0.00021917,3]
[330612029,1719624660197,-2203.32,0.00021917,3]
[330612030,1719624660207,-560.1,0.00021917,3]
[330612031,1719624660216,-500.0,0.00021917,3]
[330612032,1719624660226,-500.0,0.00021917,3]
[330612033,1719624660237,-798.14,0.00021917,3]
[330612034,1719624660247,-500.0,0.00021917,3]
[330612035,1719624660257,-500.0,0.00021917,3]
[330612036,1719624660267,-500.0,0.00021917,3]
[330612037,1719624660277,-500.0,0.00021917,3]
[330612038,1719624660286,-2649.29,0.00021917,3]
[330612039,1719624660296,-500.0,0.00021917,3]
[330612040,1719624660305,-1154.66,0.00021917,3]
[330612041,1719624660315,-500.0,0.00021917,3]
[330612042,1719624660324,-500.0,0.00021917,3]
[330612043,1719624660333,-500.0,0.00021917,3]
[330612044,1719624660347,-1088.38,0.00021917,3]
[330612045,1719624660356,-3995.74,0.00021917,3]
[330612046,1719624660366,-602.85,0.00021917,3]
[330612047,1719624660375,-278.43,0.00021917,3]
[330612048,1719624660385,-500.0,0.00021917,3]
[330612049,1719624660394,-715.7,0.00021917,3]
[330612050,1719624660404,-500.0,0.00021917,3]
[330612051,1719624660417,-500.0,0.00021917,3]
[330612052,1719624660512,-500.0,0.00021917,3]
[330612053,1719624660559,-151.0,0.00021917,2]
[330612054,1719624660571,-1200.89,0.00021917,3]
[330612055,1719624660581,-500.0,0.00021917,3]
[330612056,1719624660591,-151.0,0.00021917,2]
[330612057,1719624660600,-151.0,0.00021917,2]
[330612058,1719624660610,-151.0,0.00021917,2]
[330612059,1719624660620,-500.0,0.00021917,3]
[330612060,1719624660630,-1090.08,0.00021917,3]
[330612061,1719624660639,-500.0,0.00021917,3]
[330612062,1719624660648,-500.0,0.00021917,3]
[330612063,1719624660658,-500.0,0.00021917,3]
[330612064,1719624660669,-762.16,0.00021917,3]
[330612065,1719624660679,-500.0,0.00021917,3]
[330612066,1719624660688,-500.0,0.00021917,3]
[330612067,1719624660697,-500.0,0.00021917,3]
[330612068,1719624660707,-829.56,0.00021917,3]
[330612069,1719624660716,-993.51,0.00021917,3]
[330612070,1719624660726,-1364.87,0.00021917,3]
[330612071,1719624660736,-500.0,0.00021917,3]
[330612072,1719624660745,-500.0,0.00021917,3]
[330612073,1719624660755,-657.96,0.00021917,3]
[330612074,1719624660764,-520.52671133,0.00021917,3]
[330612075,1719624660774,-2538.87,0.00021917,3]
[330612076,1719624660784,-564.74,0.00021917,3]
[330612077,1719624660793,-500.0,0.00021917,3]
[330612078,1719624660803,-736.25,0.00021917,3]
[330612079,1719624660812,-893.56,0.00021917,3]
[330612080,1719624660822,-12682.01,0.00021917,3]
[330612081,1719624660831,-500.0,0.00021917,3]
[330612082,1719624660840,-513.4208289,0.00021917,3]
[330612083,1719624660850,-880.57,0.00021917,3]
[330612084,1719624660859,-500.0,0.00021917,3]
[330612085,1719624660868,-500.0,0.00021917,3]
[330612086,1719624660878,-500.0,0.00021917,3]
[330612087,1719624660887,-500.0,0.00021917,3]
[330612088,1719624660897,-522.87,0.00021917,3]
[330612089,1719624660906,-1053.53,0.00021917,3]
[330612090,1719624660916,-759.87,0.00021917,3]
[330612091,1719624660926,-2414.51,0.00021917,3]
[330612092,1719624660935,-601.93,0.00021917,3]
[330612093,1719624660945,-500.0,0.00021917,3]
[330612094,1719624660954,-192.074765,0.00021917,2]
[330612095,1719624660964,-1061.98,0.00021917,3]
[330612096,1719624660974,-192.074765,0.00021917,2]
[330612097,1719624660983,-848.12,0.00021917,3]
[330612098,1719624660992,-766.48,0.00021917,3]
[330612099,1719624661002,-1264.22,0.00021917,3]
[330612100,1719624661012,-192.074765,0.00021917,2]
[330612101,1719624661021,-500.0,0.00021917,3]
[330612102,1719624661030,-507.94,0.00021917,3]
[330612103,1719624661039,-192.074765,0.00021917,2]
[330612104,1719624661049,-500.0,0.00021917,3]
[330612105,1719624661058,-500.0,0.00021917,3]
[330612106,1719624661068,-1086.97,0.00021917,3]
[330612107,1719624661078,-1177.5,0.00021917,3]
[330612108,1719624661087,-192.074765,0.00021917,2]
[330612109,1719624661097,-192.074765,0.00021917,2]
[330612110,1719624661106,-500.0,0.00021917,3]
[330612111,1719624661115,-192.074765,0.00021917,2]
[330612112,1719624661124,-192.07476,0.00021917,2]
[330612113,1719624661133,-760.6,0.00021917,3]
[330612114,1719624661143,-500.0,0.00021917,3]
[330612115,1719624661152,-500.0,0.00021917,3]
[330612116,1719624661161,-2321.48,0.00021917,3]
[330612117,1719624661173,-1973.51,0.00021917,3]
[330612118,1719624661182,-2233.52,0.00021917,3]
[330612119,1719624661194,-2749.79,0.00021917,3]
[330612120,1719624661203,-500.0,0.00021917,3]
[330612121,1719624661213,-963.69,0.00021917,3]
[330612122,1719624661223,-1074.85,0.00021917,3]
[330612123,1719624661233,-1377.5,0.00021917,3]
[330612124,1719624661243,-500.0,0.00021917,3]
[330612125,1719624661253,-500.0,0.00021917,3]
[330612126,1719624661263,-500.0,0.00021917,3]
[330612127,1719624661272,-500.0,0.00021917,3]
[330612128,1719624661282,-500.0,0.00021917,3]
[330612129,1719624661292,-500.0,0.00021917,3]
[330612130,1719624661301,-500.0,0.00021917,3]
[330612131,1719624661310,-500.0,0.00021917,3]
[330612132,1719624661320,-500.0,0.00021917,3]
[330612133,1719624661330,-500.0,0.00021917,3]
[330612134,1719624661341,-775.21,0.00021917,3]
[330612135,1719624661351,-500.0,0.00021917,3]
[330612136,1719624661360,-500.0,0.00021917,3]
[330612137,1719624661370,-500.0,0.00021917,3]
[330612138,1719624661379,-500.0,0.00021917,3]
[330612139,1719624661389,-1065.55,0.00021917,3]
[330612140,1719624661398,-500.0,0.00021917,3]
[330612141,1719624661407,-500.0,0.00021917,3]
[330612142,1719624661418,-500.0,0.00021917,3]
[330612143,1719624661428,-500.0,0.00021917,3]
[330612144,1719624661437,-500.0,0.00021917,3]
[330612145,1719624661447,-3085.74,0.00021917,3]
[330612146,1719624661458,-500.0,0.00021917,3]
[330612147,1719624661469,-1623.53,0.00021917,3]
[330612148,1719624661478,-500.0,0.00021917,3]
[330612149,1719624661488,-943.44,0.00021917,3]
[330612150,1719624661497,-745.35,0.00021917,3]
[330612151,1719624661507,-625.74,0.00021917,3]
[330612152,1719624661516,-500.0,0.00021917,3]
[330612153,1719624661526,-501.18,0.00021917,3]
[330612154,1719624661535,-500.0,0.00021917,3]
[330612155,1719624661546,-500.0,0.00021917,3]
[330612156,1719624661560,-151.0,0.00021917,2]
[330612157,1719624661581,-151.0,0.00021917,2]
[330612158,1719624661590,-151.0,0.00021917,2]
[330612159,1719624661600,-151.0,0.00021917,2]
[330612160,1719624661609,-1679.91,0.00021917,3]
[330612161,1719624661619,-500.0,0.00021917,3]
[330612162,1719624661628,-1132.91,0.00021917,3]
[330612163,1719624661637,-500.0,0.00021917,3]
[330612164,1719624661648,-500.0,0.00021917,3]
[330612165,1719624661657,-151.0,0.00021917,2]
[330612166,1719624661667,-151.0,0.00021917,2]
[330612167,1719624661676,-305.52530096,0.00021917,3]
[330612168,1719624661685,-500.0,0.00021917,3]
[330612169,1719624661695,-1318.36,0.00021917,3]
[330612170,1719624661704,-500.0,0.00021917,3]
[330612171,1719624661714,-500.0,0.00021917,3]
[330612172,1719624661723,-500.0,0.00021917,3]
[330612173,1719624661733,-500.0,0.00021917,3]
[330612174,1719624661742,-736.44,0.00021917,3]
[330612175,1719624661751,-840.02,0.00021917,3]
[330612176,1719624661760,-1081.59,0.00021917,3]
[330612177,1719624661769,-1849.11,0.00021917,3]
[330612178,1719624661779,-500.0,0.00021917,3]
[330612179,1719624661788,-500.0,0.00021917,3]
[330612180,1719624661798,-1000.0,0.00021917,3]
[330612181,1719624661807,-500.0,0.00021917,3]
[330612182,1719624661816,-500.0,0.00021917,3]
[330612183,1719624661826,-500.0,0.00021917,3]
[330612184,1719624661835,-1597.58,0.00021917,3]
[330612185,1719624661845,-1986.25,0.00021917,3]
[330612186,1719624661855,-1585.98,0.00021917,3]
[330612187,1719624661864,-608.57,0.00021917,3]
[330612188,1719624661874,-500.0,0.00021917,3]
[330612189,1719624661883,-1073.01,0.00021917,3]
[330612190,1719624661892,-151.0,0.00021917,2]
[330612191,1719624661901,-186.788865,0.00021917,2]
[330612192,1719624661911,-1000.61,0.00021917,3]
[330612193,1719624661921,-1643.07,0.00021917,3]
[330612194,1719624661930,-500.0,0.00021917,3]
[330612195,1719624661940,-500.0,0.00021917,3]
[330612196,1719624661949,-1527.95,0.00021917,3]
[330612197,1719624661959,-2163.62,0.00021917,3]
[330612198,1719624661969,-1188.51,0.00021917,3]
[330612199,1719624661981,-1015.94,0.00021917,3]
[330612200,1719624661992,-500.0,0.00021917,3]
[330612201,1719624662005,-500.0,0.00021917,3]
[330612202,1719624662015,-588.74,0.00021917,3]
[330612203,1719624662024,-1604.57,0.00021917,3]
[330612204,1719624662035,-500.0,0.00021917,2]
[330612205,1719624662045,-689.63,0.00021917,3]
[330612206,1719624662054,-1311.4,0.00021917,3]
[330612207,1719624662064,-973.69,0.00021917,3]
[330612208,1719624662074,-2190.51,0.00021917,3]
[330612209,1719624662083,-500.0,0.00021917,3]
[330612210,1719624662094,-739.67,0.00021917,3]
[330612211,1719624662106,-1221.85,0.00021917,3]
[330612212,1719624662115,-845.18,0.00021917,3]
[330612213,1719624662126,-500.0,0.00021917,3]
[330612214,1719624662135,-500.0,0.00021917,3]
[330612215,1719624662145,-1064.69,0.00021917,3]
[330612216,1719624662155,-500.0,0.00021917,3]
[330612217,1719624662165,-1372.43,0.00021917,3]
[330612218,1719624662175,-1381.66,0.00021917,3]
[330612219,1719624662185,-569.83,0.00021917,3]
[330612220,1719624662194,-2728.8,0.00021917,3]
[330612221,1719624662207,-500.0,0.00021917,3]
[330612222,1719624662217,-526.85,0.00021917,3]
[330612223,1719624662226,-500.0,0.00021917,3]
[330612224,1719624662236,-1303.73,0.00021917,3]
[330612225,1719624662247,-500.0,0.00021917,3]
[330612226,1719624662257,-500.0,0.00021917,3]
[330612227,1719624662267,-832.33,0.00021917,3]
[330612228,1719624662277,-2395.26,0.00021917,3]
[330612229,1719624662288,-1056.71,0.00021917,3]
[330612230,1719624662298,-1254.99,0.00021917,3]
[330612231,1719624662308,-500.0,0.00021917,3]
[330612232,1719624662319,-500.0,0.00021917,3]
[330612233,1719624662329,-2107.44,0.00021917,3]
[330612234,1719624662341,-2584.99,0.00021917,3]
[330612235,1719624662354,-986.91,0.00021917,3]
[330612236,1719624662364,-704.01,0.00021917,3]
[330612237,1719624662373,-1009.52,0.00021917,3]
[330612238,1719624662384,-1411.17,0.00021917,3]
[330612239,1719624662394,-1327.81,0.00021917,3]
[330612240,1719624662404,-500.0,0.00021917,3]
[330612241,1719624662413,-500.0,0.00021917,3]
[330612242,1719624662424,-500.0,0.00021917,3]
[330612243,1719624662434,-500.0,0.00021917,3]
[330612244,1719624662443,-500.0,0.00021917,3]
[330612245,1719624662452,-1273.01,0.00021917,3]
[330612246,1719624662462,-1001.05,0.00021917,3]
[330612247,1719624662472,-500.0,0.00021917,3]
[330612248,1719624662481,-500.0,0.00021917,3]
[330612249,1719624662491,-500.0,0.00021917,3]
[330612250,1719624662501,-500.0,0.00021917,3]
[330612251,1719624662510,-1132.22,0.00021917,3]
[330612252,1719624662520,-500.0,0.00021917,3]
[330612253,1719624662530,-500.0,0.00021917,3]
[330612254,1719624662539,-937.96,0.00021917,3]
[330612255,1719624662549,-587.85,0.00021917,3]
[330612256,1719624662558,-2259.45,0.00021917,3]
[330612257,1719624662567,-500.0,0.00021917,3]
[330612258,1719624662577,-500.0,0.00021917,3]
[330612259,1719624662587,-500.0,0.00021917,3]
[330612260,1719624662597,-2428.22,0.00021917,3]
[330612261,1719624662606,-500.0,0.00021917,3]
[330612262,1719624662616,-500.0,0.00021917,3]
[330612263,1719624662625,-500.0,0.00021917,3]
[330612264,1719624662635,-981.24,0.00021917,3]
[330612265,1719624662644,-977.27,0.00021917,3]
[330612266,1719624662653,-500.0,0.00021917,3]
[330612267,1719624662663,-500.0,0.00021917,3]
[330612268,1719624662673,-500.0,0.00021917,3]
[330612269,1719624663009,-974.78,0.00021917,3]
[330612270,1719624663034,-1714.27,0.00021917,3]
[330612271,1719624663043,-576.48,0.00021917,3]
[330612272,1719624663052,-500.0,0.00021917,3]
[330612273,1719624663062,-967.39,0.00021917,3]
[330612274,1719624663071,-500.0,0.00021917,3]
[330612275,1719624663080,-1137.65,0.00021917,3]
[330612276,1719624663089,-568.89,0.00021917,3]
[330612277,1719624663099,-500.0,0.00021917,3]
[330612278,1719624663108,-500.0,0.00021917,3]
[330612279,1719624663117,-984.13,0.00021917,3]
[330612280,1719624663127,-500.0,0.00021917,3]
[330612281,1719624663138,-500.0,0.00021917,3]
[330612282,1719624663149,-2780.98,0.00021917,3]
[330612283,1719624663159,-727.21,0.00021917,3]
[330612284,1719624663170,-500.0,0.00021917,3]
[330612285,1719624663180,-1214.06,0.00021917,3]
[330612286,1719624663189,-500.0,0.00021917,3]
[330612287,1719624663198,-1193.36,0.00021917,3]
[330612288,1719624663207,-500.0,0.00021917,3]
[330612289,1719624663216,-759.71,0.00021917,3]
[330612290,1719624663225,-1297.69,0.00021917,3]
[330612291,1719624663236,-500.0,0.00021917,3]
[330612292,1719624663246,-500.0,0.00021917,3]
[330612293,1719624663256,-500.0,0.00021917,3]
[330612294,1719624663265,-151.0,0.00021917,2]
[330612295,1719624663275,-500.0,0.00021917,3]
[330612296,1719624663284,-500.0,0.00021917,3]
[330612297,1719624663294,-500.0,0.00021917,3]
[330612298,1719624663305,-500.0,0.00021917,3]
[330612299,1719624663316,-505.96,0.00021917,3]
[330612300,1719624663325,-500.0,0.00021917,3]
[330612301,1719624663335,-1124.22,0.00021917,3]
[330612302,1719624663349,-500.0,0.00021917,3]
[330612303,1719624663359,-570.66,0.00021917,3]
[330612304,1719624663368,-633.29,0.00021917,3]
[330612305,1719624663378,-845.43,0.00021917,3]
[330612306,1719624663387,-500.0,0.00021917,3]
[330612307,1719624663397,-1095.2,0.00021917,3]
[330612308,1719624663407,-500.0,0.00021917,3]
[330612309,1719624663416,-500.0,0.00021917,3]
[330612310,1719624663425,-500.0,0.00021917,3]
[330612311,1719624663435,-748.95,0.00021917,3]
[330612312,1719624663445,-500.0,0.00021917,3]
[330612313,1719624663454,-1324.14,0.00021917,3]
[330612314,1719624663464,-1453.57,0.00021917,3]
[330612315,1719624663474,-1852.58,0.00021917,3]
[330612316,1719624663485,-500.0,0.00021917,3]
[330612317,1719624663495,-500.0,0.00021917,3]
[330612318,1719624663504,-1763.92,0.00021917,3]
[330612319,1719624663514,-500.0,0.00021917,3]
[330612320,1719624663524,-216.227779,0.00021917,2]
[330612321,1719624663533,-4338.01,0.00021917,3]
[330612322,1719624663543,-500.0,0.00021917,3]
[330612323,1719624663552,-5418.69,0.00021917,3]
[330612324,1719624663562,-611.04139137,0.00021917,3]
[330612325,1719624663571,-216.227779,0.00021917,2]
[330612326,1719624663581,-1888.95,0.00021917,3]
[330612327,1719624663590,-500.0,0.00021917,3]
[330612328,1719624663599,-1136.46,0.00021917,3]
[330612329,1719624663609,-500.0,0.00021917,3]
[330612330,1719624663618,-500.0,0.00021917,3]
[330612331,1719624663627,-547.65,0.00021917,3]
[330612332,1719624663636,-500.0,0.00021917,3]
[330612333,1719624663646,-1021.33,0.00021917,3]
[330612334,1719624663655,-500.0,0.00021917,3]
[330612335,1719624663664,-500.0,0.00021917,3]
[330612336,1719624663674,-1168.6,0.00021917,3]
[330612337,1719624663683,-500.0,0.00021917,3]
[330612338,1719624663693,-151.0,0.00021917,2]
[330612339,1719624663702,-1957.94,0.00021917,3]
[330612340,1719624663713,-500.0,0.00021917,3]
[330612341,1719624663722,-506.21,0.00021917,3]
[330612342,1719624663731,-500.0,0.00021917,3]
[330612343,1719624663741,-1780.68,0.00021917,3]
[330612344,1719624663752,-1322.96,0.00021917,3]
[330612345,1719624663761,-500.0,0.00021917,3]
[330612346,1719624663770,-500.0,0.00021917,3]
[330612347,1719624663779,-1583.67,0.00021917,3]
[330612348,1719624663789,-547.15,0.00021917,3]
[330612349,1719624663799,-2240.67,0.00021917,3]
[330612350,1719624663808,-966.47,0.00021917,3]
[330612351,1719624663817,-500.0,0.00021917,3]
[330612352,1719624663828,-1135.47,0.00021917,3]
[330612353,1719624663837,-500.0,0.00021917,3]
[330612354,1719624663846,-712.47,0.00021917,3]
[330612355,1719624663855,-500.0,0.00021917,3]
[330612356,1719624663865,-500.0,0.00021917,3]
[330612357,1719624663875,-629.98,0.00021917,3]
[330612358,1719624663885,-4477.0,0.00021917,3]
[330612359,1719624663894,-500.0,0.00021917,3]
[330612360,1719624663904,-4088.66,0.00021917,3]
[330612361,1719624663914,-500.0,0.00021917,3]
[330612362,1719624663924,-1164.4,0.00021917,3]
[330612363,1719624663933,-500.0,0.00021917,3]
[330612364,1719624663943,-754.53,0.00021917,3]
[330612365,1719624663953,-1160.53,0.00021917,3]
[330612366,1719624663964,-151.0,0.00021917,2]
[330612367,1719624663974,-500.0,0.00021917,3]
[330612368,1719624663983,-500.0,0.00021917,3]
[330612369,1719624663993,-968.77,0.00021917,3]
[330612370,1719624664003,-3288.62,0.00021917,3]
[330612371,1719624664012,-600.27,0.00021917,3]
[330612372,1719624664022,-1212.59,0.00021917,3]
[330612373,1719624664032,-894.99,0.00021917,3]
[330612374,1719624664042,-1000.94,0.00021917,3]
[330612375,1719624664051,-500.0,0.00021917,3]
[330612376,1719624664061,-1879.36,0.00021917,3]
[330612377,1719624664070,-880.93,0.00021917,3]
[330612378,1719624664080,-1375.65,0.00021917,3]
[330612379,1719624664089,-500.0,0.00021917,3]
[330612380,1719624664099,-1503.63,0.00021917,3]
[330612381,1719624664108,-500.0,0.00021917,3]
[330612382,1719624664118,-500.0,0.00021917,3]
[330612383,1719624664128,-2293.24,0.00021917,3]
[330612384,1719624664138,-633.86842103,0.00021917,3]
[330612385,1719624664148,-919.92,0.00021917,3]
[330612386,1719624664158,-1260.45,0.00021917,3]
[330612387,1719624664169,-512.15,0.00021917,3]
[330612388,1719624664178,-500.0,0.00021917,3]
[330612389,1719624664188,-500.0,0.00021917,3]
[330612390,1719624664201,-500.0,0.00021917,3]
[330612391,1719624664210,-711.4,0.00021917,3]
[330612392,1719624664221,-500.0,0.00021917,3]
[330612393,1719624664230,-500.0,0.00021917,3]
[330612394,1719624664241,-1367.15,0.00021917,3]
[330612395,1719624664251,-500.0,0.00021917,3]
[330612396,1719624664260,-3233.11,0.00021917,3]
[330612397,1719624664270,-500.0,0.00021917,3]
[330612398,1719624664279,-500.0,0.00021917,3]
[330612399,1719624664290,-1221.28,0.00021917,3]
[330612400,1719624664299,-500.0,0.00021917,3]
[330612401,1719624664308,-1228.83,0.00021917,3]
[330612402,1719624664319,-500.0,0.00021917,3]
[330612403,1719624664329,-4736.98,0.00021917,3]
[330612404,1719624664339,-500.0,0.00021917,3]
[330612405,1719624664353,-2344.97,0.00021917,3]
[330612406,1719624664363,-500.0,0.00021917,3]
[330612407,1719624664372,-500.0,0.00021917,3]
[330612408,1719624664384,-500.0,0.00021917,3]
[330612409,1719624664394,-1327.87,0.00021917,3]
[330612410,1719624664403,-151.0,0.00021917,2]
[330612411,1719624664413,-865.66,0.00021917,3]
[330612412,1719624664427,-639.25,0.00021917,3]
[330612413,1719624664436,-903.44,0.00021917,3]
[330612414,1719624664446,-2478.46,0.00021917,3]
[330612415,1719624664456,-765.2,0.00021917,3]
[330612416,1719624664465,-428.86836719,0.00021917,3]
[330612417,1719624664475,-500.0,0.00021917,3]
[330612418,1719624664485,-724.72,0.00021917,3]
[330612419,1719624664495,-500.0,0.00021917,3]
[330612420,1719624664506,-1130.74,0.00021917,3]
[330612421,1719624664517,-608.62,0.00021917,3]
[330612422,1719624664527,-500.0,0.00021917,3]
[330612423,1719624664536,-1301.51,0.00021917,3]